bitfinex/quotes_SOLUSD_20251216
["timestamp","ask_amount","ask_price","bid_price","bid_amount"]
[1765917999691,0.67,128.25,128.2,4.50936955]
[1765917999891,8.46787897,128.24,128.21,0.71]
[1765918000315,8.46787897,128.24,128.21,4.50936955]
[1765918001104,8.46787897,128.24,128.22,3.79936955]
[1765918002319,8.46727095,128.25,128.22,4.50936955]
[1765918002525,0.67,128.24,128.22,3.79936955]
[1765918003127,0.67,128.24,128.21,0.71]
[1765918003300,0.67,128.24,128.21,4.50936955]
[1765918003622,8.4683877,128.24,128.22,3.79936955]
[1765918003825,0.67,128.23,128.2,9.25]
[1765918004002,0.67,128.23,128.21,3.79936955]
[1765918005519,8.46896312,128.23,128.21,3.79936955]
[1765918007423,7.79896312,128.23,128.21,4.50936955]
[1765918007605,8.46896312,128.23,128.21,4.50936955]
[1765918007926,8.46896312,128.23,128.21,3.79936955]
[1765918008524,8.4680553,128.24,128.22,3.79936955]
[1765918008913,8.4680553,128.24,128.21,8.50969599]
[1765918009123,8.4680553,128.24,128.22,3.79936955]
[1765918009312,8.4680553,128.24,128.21,0.71]
[1765918009500,8.4680553,128.24,128.22,3.79936955]
[1765918011138,0.67,128.23,128.19,3.79936955]
[1765918013039,0.67,128.21,128.19,3.79936955]
[1765918013927,8.46979996,128.21,128.19,3.79936955]
[1765918014406,8.46979996,128.21,128.19,3.80136102]
[1765918020535,8.46979996,128.21,128.19,4.51136102]
[1765918021120,0.67,128.2,128.17,0.71]
[1765918021419,8.46979996,128.21,128.19,3.80136102]
[1765918021725,8.46979996,128.21,128.19,4.51136102]
[1765918021930,8.4693182,128.22,128.2,3.80136102]
[1765918022126,0.67,128.31,128.22,0.71]
[1765918022445,0.67,128.3,128.22,3.80136102]
[1765918022607,0.67,128.27,128.24,3.80136102]
[1765918022811,8.80994492,128.28,128.22,0.71]
[1765918022812,0.67,128.25,128.23,8.56]
[1765918024323,0.67,128.25,128.22,3.80136102]
[1765918024518,7.79787897,128.24,128.22,3.80136102]
[1765918024724,8.50787897,128.24,128.22,3.80136102]
[1765918025026,8.50787897,128.24,128.21,17.06955786]
[1765918025027,0.71,128.23,128.21,3.80136102]
[1765918025260,27.29257641,128.24,128.21,3.80136102]
[1765918025422,27.29257641,128.24,128.22,4.47136102]
[1765918025423,7.79787897,128.24,128.22,4.47136102]
[1765918025740,8.50787897,128.24,128.22,3.80136102]
[1765918025935,0.71,128.23,128.2,0.67]
[1765918026119,0.71,128.23,128.21,3.80136102]
[1765918026845,0.71,128.21,128.19,12.36136102]
[1765918027016,8.5090953,128.22,128.19,13.03136102]
[1765918027526,8.5090953,128.22,128.19,11.66278791]
[1765918028848,8.5090953,128.22,128.2,2.43278791]
[1765918032046,8.5090953,128.22,128.19,9.23]
[1765918032248,8.5090953,128.22,128.2,2.43278791]
[1765918033246,27.29683356,128.22,128.17,7.80186487]
[1765918033448,0.71,128.21,128.17,8.56]
[1765918033625,0.71,128.21,128.18,2.43278791]
[1765918033949,0.71,128.2,128.17,8.56]
[1765918034121,0.71,128.18,128.14,0.87]
[1765918034437,0.71,128.18,128.15,3.10278791]
[1765918035031,0.71,128.18,128.16,2.43278791]
[1765918035250,8.5121266,128.18,128.16,2.43278791]
[1765918036541,8.5121266,128.18,128.15,0.67]
[1765918036727,8.5121266,128.18,128.16,2.43278791]
[1765918037123,20.20998674,128.21,128.18,0.67]
[1765918037328,11.14767296,128.22,128.19,3.10278791]
[1765918038428,7.79970361,128.21,128.19,3.10278791]
[1765918039236,8.50970361,128.21,128.19,2.43278791]
[1765918040434,18.2369927,128.22,128.2,3.10278791]
[1765918041231,7.79931974,128.22,128.2,3.10278791]
[1765918041635,0.71,128.21,128.19,2.43278791]
[1765918042446,7.80031201,128.2,128.19,2.43278791]
[1765918042756,8.51031201,128.2,128.18,2.43278791]
[1765918043129,0.71,128.19,128.17,8.56]
[1765918044946,8.51143625,128.19,128.16,3.10278791]
[1765918045152,27.29734769,128.22,128.18,2.43278791]
[1765918045357,27.29734769,128.22,128.19,2.43278791]
[1765918045358,0.71,128.21,128.19,2.43278791]
[1765918045531,0.71,128.2,128.15,0.67]
[1765918045735,0.71,128.2,128.16,2.43278791]
[1765918045736,0.71,128.18,128.16,2.43278791]
[1765918046051,0.71,128.18,128.15,9.23]
[1765918046356,0.71,128.18,128.15,11.66278791]
[1765918046542,11.14767296,128.19,128.16,0.67]
[1765918046946,0.71,128.17,128.14,0.2]
[1765918047537,0.71,128.16,128.14,0.2]
[1765918047957,2.43278791,128.16,128.14,0.2]
[1765918048136,11.14767296,128.15,128.14,0.2]
[1765918048754,30.95040579,128.15,128.14,0.2]
[1765918048928,38.75376123,128.15,128.14,1e-08]
[1765918050861,27.76097332,128.15,128.14,1e-08]
[1765918051155,18.9510284,128.15,128.14,1e-08]
[1765918051456,30.19376123,128.15,128.14,1e-08]
[1765918052332,27.76097332,128.15,128.14,1e-08]
[1765918053149,30.19376123,128.15,128.14,1e-08]
[1765918053332,36.32097332,128.15,128.14,1e-08]
[1765918054543,36.32097332,128.15,128.14,0.68000001]
[1765918054544,18.2410284,128.15,128.14,0.68000001]
[1765918054737,7.80335544,128.15,128.14,1e-08]
[1765918058164,17.27330036,128.15,128.14,1e-08]
[1765918061572,16.61330036,128.15,128.14,1e-08]
[1765918061744,25.17330036,128.15,128.14,1e-08]
[1765918062351,30.73414301,128.15,128.14,1e-08]
[1765918063544,28.3013551,128.15,128.14,1e-08]
[1765918063975,30.73414301,128.15,128.14,1e-08]
[1765918065579,30.73414301,128.15,128.1,0.2]
[1765918065778,21.68040579,128.11,128.1,0.2]
[1765918065984,2.43278791,128.09,128.08,0.2]
[1765918066159,22.09046087,128.09,128.08,0.2]
[1765918066358,19.65767296,128.09,128.08,0.2]
[1765918066578,22.09046087,128.09,128.08,0.2]
[1765918067281,19.65767296,128.09,128.08,0.2]
[1765918067582,29.89747156,128.09,128.08,0.2]
[1765918067975,27.46468365,128.09,128.08,0.2]
[1765918068176,29.89747156,128.09,128.08,0.2]
[1765918068367,38.70741648,128.09,128.08,0.2]
[1765918069284,19.24761788,128.07,128.06,0.2]
[1765918069465,36.27584775,128.07,128.06,0.2]
[1765918070481,7.80777836,128.08,128.06,2.63278791]
[1765918070681,19.51520831,128.11,128.08,0.7]
[1765918070984,19.51520831,128.11,128.09,0.7]
[1765918071185,27.32261444,128.1,128.08,2.43278791]
[1765918071363,19.51600312,128.1,128.08,0.7]
[1765918073280,27.32240436,128.1,128.08,0.7]
[1765918073671,27.32240436,128.1,128.08,0.2]
[1765918081890,27.98240436,128.1,128.07,0.7]
[1765918082089,8.56,128.09,128.06,0.2]
[1765918082289,0.66,128.08,128.06,0.2]
[1765918082475,8.56,128.09,128.06,0.2]
[1765918082813,27.32240436,128.1,128.08,7.22857592]
[1765918082986,27.32240436,128.1,128.08,0.7]
[1765918083296,0.66,128.09,128.06,7.42857592]
[1765918084093,7.80762023,128.08,128.06,7.42857592]
[1765918084294,27.32667082,128.08,128.06,0.2]
[1765918084475,27.32667082,128.08,128.06,0.87]
[1765918084984,27.32667082,128.08,128.06,7.40072403]
[1765918085302,7.80762023,128.08,128.07,7.20072403]
[1765918085495,7.80762023,128.08,128.06,6.73072403]
[1765918085680,7.80762023,128.08,128.06,7.40072403]
[1765918086199,7.80701069,128.09,128.06,7.40072403]
[1765918086376,28.01453742,128.09,128.06,7.40072403]
[1765918086984,28.01453742,128.09,128.06,0.87]
[1765918087185,28.01453742,128.09,128.06,7.40072403]
[1765918088899,28.01453742,128.09,128.06,6.73072403]
[1765918089095,28.01453742,128.09,128.06,7.40072403]
[1765918089486,28.01453742,128.09,128.06,11.4812077]
[1765918090095,28.01453742,128.09,128.06,0.87]
[1765918090326,27.32453742,128.09,128.06,0.2]
[1765918090488,0.69,128.08,128.06,0.2]
[1765918090800,0.69,128.08,128.06,10.8112077]
[1765918091592,7.80822987,128.07,128.06,10.8112077]
[1765918092502,7.80822987,128.07,128.06,11.4812077]
[1765918092691,7.80793427,128.08,128.07,0.67]
[1765918092885,7.80793427,128.08,128.07,11.2812077]
[1765918093203,7.80793427,128.08,128.06,11.4812077]
[1765918093404,7.80793427,128.08,128.06,4.0088428]
[1765918093702,27.32453742,128.09,128.06,4.6788428]
[1765918093901,28.01453742,128.09,128.06,4.6788428]
[1765918094113,28.01453742,128.09,128.06,4.0088428]
[1765918094314,28.01453742,128.09,128.06,4.6788428]
[1765918095017,27.32453742,128.09,128.06,4.0088428]
[1765918095516,27.32453742,128.09,128.06,0.2]
[1765918095709,28.01453742,128.09,128.06,4.6788428]
[1765918095909,27.32453742,128.09,128.07,0.67]
[1765918096087,27.32453742,128.09,128.06,4.0088428]
[1765918096295,28.01453742,128.09,128.06,4.6788428]
[1765918097791,0.69,128.08,128.06,0.2]
[1765918098703,0.69,128.07,128.06,0.2]
[1765918099101,13.30878772,128.07,128.06,0.2]
[1765918099421,13.30878772,128.07,128.04,0.2]
[1765918099422,27.74706731,128.05,128.04,0.2]
[1765918099595,40.11591011,128.05,128.04,0.2]
[1765918101517,36.30706731,128.05,128.04,0.2]
[1765918101716,40.11591011,128.05,128.04,0.2]
[1765918104921,36.30706731,128.05,128.04,0.2]
[1765918105301,36.30706731,128.05,128.04,0.87]
[1765918105302,7.80944943,128.05,128.04,0.87]
[1765918105496,18.05994492,128.07,128.04,0.87]
[1765918105720,18.05994492,128.07,128.05,0.67]
[1765918105721,8.56,128.07,128.05,0.67]
[1765918106023,9.25,128.07,128.04,4.6788428]
[1765918106710,9.25,128.07,128.04,0.87]
[1765918107222,7.8088396,128.06,128.04,0.87]
[1765918109022,27.33093861,128.06,128.04,0.2]
[1765918109223,0.69,128.05,128.04,0.2]
[1765918109727,9.25,128.05,128.04,0.2]
[1765918110020,8.56,128.05,128.04,0.2]
[1765918110224,9.25,128.05,128.04,0.2]
[1765918110802,17.05944943,128.05,128.04,0.2]
[1765918115127,8.49944943,128.05,128.04,0.2]
[1765918115336,7.80944943,128.05,128.04,0.2]
[1765918115640,7.80944943,128.05,128.04,0.88]
[1765918115815,7.80944943,128.05,128.04,0.2]
[1765918118503,7.80944943,128.05,128.04,0.88]
[1765918119914,7.80944943,128.05,128.04,0.2]
[1765918120237,8.52944943,128.05,128.04,0.2]
[1765918120412,12.33829223,128.05,128.04,0.2]
[1765918123933,11.61829223,128.05,128.04,0.2]
[1765918124438,12.33829223,128.05,128.04,0.2]
[1765918125139,29.70823715,128.05,128.04,0.2]
[1765918125937,25.17939435,128.05,128.04,0.2]
[1765918126429,16.36944943,128.05,128.04,0.2]
[1765918127614,17.08944943,128.05,128.04,0.2]
[1765918127815,20.89829223,128.05,128.04,0.2]
[1765918129017,25.89939435,128.05,128.04,0.2]
[1765918129217,29.70823715,128.05,128.04,0.2]
[1765918131941,8.80994492,128.04,128.01,0.53390662]
[1765918132236,23.77646068,128.02,128.01,1e-08]
[1765918133245,31.58774016,128.02,128.01,1e-08]
[1765918135028,27.77889736,128.02,128.01,1e-08]
[1765918135231,25.1812244,128.02,128.01,1e-08]
[1765918135648,29.7100672,128.02,128.01,1e-08]
[1765918137443,16.6212244,128.02,128.01,1e-08]
[1765918137630,39.42774016,128.02,128.01,1e-08]
[1765918138254,40.14774016,128.02,128.01,1e-08]
[1765918140533,36.33889736,128.02,128.01,1e-08]
[1765918140735,40.14774016,128.02,128.01,1e-08]
[1765918142870,11.15767296,128.0,127.99,0.2]
[1765918143161,13.0888428,128.0,127.99,0.2]
[1765918143337,21.89878772,128.0,127.99,1e-08]
[1765918143739,25.98388611,128.0,127.99,1e-08]
[1765918143933,19.92761788,127.98,127.97,1e-08]
[1765918144137,25.66763052,127.98,127.97,1e-08]
[1765918144956,33.48135141,127.98,127.97,1e-08]
[1765918145154,29.67250861,127.98,127.97,1e-08]
[1765918145541,25.18366581,127.98,127.97,1e-08]
[1765918145859,39.43018157,127.98,127.97,1e-08]
[1765918146058,40.11018157,127.98,127.97,1e-08]
[1765918146635,39.43018157,127.98,127.97,1e-08]
[1765918147660,40.11018157,127.98,127.97,1e-08]
[1765918148238,39.43018157,127.98,127.97,1e-08]
[1765918148441,35.62133877,127.98,127.97,0.72000001]
[1765918148639,35.62133877,127.98,127.97,1e-08]
[1765918149448,38.06396637,127.98,127.97,1e-08]
[1765918149651,38.74396637,127.98,127.97,1e-08]
[1765918149841,38.06396637,127.98,127.97,1e-08]
[1765918150044,27.62629341,127.98,127.97,1e-08]
[1765918150268,30.06892101,127.98,127.97,1e-08]
[1765918151053,49.60322324,127.98,127.95,1e-08]
[1765918151368,11.25257252,127.96,127.95,1e-08]
[1765918151561,11.25257252,127.96,127.93,1e-08]
[1765918151562,8.80994492,127.95,127.93,1e-08]
[1765918151868,8.80994492,127.95,127.91,0.2]
[1765918151869,19.24761788,127.92,127.91,0.2]
[1765918152165,8.80994492,127.9,127.86,0.72]
[1765918152464,11.0026276,127.89,127.86,0.72]
[1765918152771,8.80994492,127.88,127.86,0.72]
[1765918153173,7.82044263,127.87,127.86,0.72]
[1765918153468,38.37417682,127.87,127.84,0.92]
[1765918153767,2.4426276,127.86,127.84,0.92]
[1765918153969,38.37417682,127.87,127.84,0.92]
[1765918154368,38.37417682,127.87,127.85,0.72]
[1765918154957,38.37858717,127.87,127.85,0.72]
[1765918155478,35.93154922,127.87,127.85,0.72]
[1765918155788,38.37858717,127.87,127.85,0.72]
[1765918156162,35.93154922,127.87,127.85,0.72]
[1765918156685,38.37858717,127.87,127.85,0.72]
[1765918157357,38.37858717,127.87,127.84,0.92]
[1765918157557,0.68,127.85,127.84,0.2]
[1765918157764,22.12471091,127.85,127.84,0.2]
[1765918157971,27.80761788,127.85,127.84,0.2]
[1765918158278,30.93465583,127.85,127.84,0.2]
[1765918159487,35.62928389,127.85,127.84,0.2]
[1765918159643,18.25933897,127.85,127.84,0.92]
[1765918160052,29.96637692,127.85,127.84,0.2]
[1765918160349,38.77632184,127.85,127.84,0.2]
[1765918160868,10.43767296,127.81,127.73,0.72]
[1765918161175,21.46471091,127.81,127.77,0.72]
[1765918161473,7.82472613,127.8,127.77,0.72]
[1765918161691,29.83357941,127.8,127.77,0.72]
[1765918161850,11.02703795,127.79,127.75,0.72]
[1765918162363,11.70703795,127.79,127.75,0.72]
[1765918162556,11.02703795,127.79,127.75,0.72]
[1765918163481,7.82595085,127.78,127.75,0.72]
[1765918163690,14.38864997,127.78,127.75,0.72]
[1765918163880,33.9535271,127.78,127.75,0.72]
[1765918164064,6.56269912,127.77,127.72,0.72]
[1765918164264,0.68,127.76,127.72,0.72]
[1765918164464,15.14269912,127.77,127.73,0.72]
[1765918165182,8.58,127.77,127.73,0.72]
[1765918165485,18.26362381,127.78,127.74,0.72]
[1765918166191,24.82632293,127.78,127.74,0.72]
[1765918166352,18.26362381,127.78,127.74,0.72]
[1765918166557,24.82632293,127.78,127.74,0.72]
[1765918166788,44.39120006,127.78,127.74,0.72]
[1765918167483,37.82850094,127.78,127.74,0.72]
[1765918167786,15.06558889,127.83,127.78,0.72]
[1765918167958,15.06558889,127.83,127.79,0.72]
[1765918167959,8.80994492,127.82,127.79,0.72]
[1765918168764,27.38324167,127.82,127.79,0.72]
[1765918169082,7.82350179,127.82,127.79,0.72]
[1765918170959,7.24269912,127.81,127.77,0.72]
[1765918171201,26.26037208,127.81,127.77,0.72]
[1765918171362,7.24269912,127.8,127.77,0.72]
[1765918171565,16.05264404,127.8,127.77,0.72]
[1765918171976,9.48994492,127.8,127.77,0.72]
[1765918172179,15.37264404,127.8,127.77,0.72]
[1765918172692,19.69767296,127.81,127.77,0.72]
[1765918172693,19.01767296,127.81,127.77,0.72]
[1765918172911,7.82472613,127.8,127.77,0.72]
[1765918173996,7.82472613,127.8,127.71,15.37264404]
[1765918173997,0.66,127.75,127.71,0.66]
[1765918174172,6.56269912,127.74,127.71,0.66]
[1765918174592,10.43767296,127.73,127.67,14.3952346]
[1765918174766,17.00037208,127.73,127.68,0.66]
[1765918174965,7.8296273,127.72,127.69,0.7]
[1765918177081,27.40369557,127.72,127.69,0.7]
[1765918177287,7.8296273,127.72,127.7,0.7]
[1765918177992,7.8292874,127.73,127.7,0.7]
[1765918178406,7.8292874,127.73,127.69,6.56269912]
[1765918178407,10.43767296,127.75,127.72,0.7]
[1765918178693,10.43767296,127.75,127.73,0.7]
[1765918179703,7.82740188,127.76,127.73,14.39169823]
[1765918179882,19.56743606,127.77,127.74,0.7]
[1765918179883,7.82668517,127.77,127.74,0.7]
[1765918181385,7.82668517,127.77,127.73,7.82899911]
[1765918181386,27.39309356,127.77,127.73,0.7]
[1765918182181,27.39309356,127.77,127.74,0.7]
[1765918182182,7.82668517,127.77,127.74,0.7]
[1765918183678,17.38994492,127.8,127.74,7.8283604]
[1765918183878,18.26239909,127.8,127.77,0.7]
[1765918184087,7.82472613,127.8,127.78,0.7]
[1765918187311,34.63924058,127.8,127.76,0.7]
[1765918187499,28.07654146,127.8,127.76,0.7]
[1765918188107,7.25269912,127.78,127.74,0.7]
[1765918188308,6.56269912,127.77,127.74,0.7]
[1765918189109,7.82717595,127.76,127.74,0.7]
[1765918191113,27.39351222,127.77,127.74,0.7]
[1765918191811,7.82620075,127.78,127.74,6.56269912]
[1765918192014,7.82620075,127.78,127.75,0.7]
[1765918194913,8.58,127.8,127.77,0.7]
[1765918194914,7.82500699,127.8,127.77,0.7]
[1765918195440,7.82500699,127.8,127.78,0.7]
[1765918199516,7.82439961,127.81,127.78,0.7]
[1765918199714,7.82439961,127.81,127.79,0.7]
[1765918200098,57.28253764,127.83,127.79,0.7]
[1765918200446,7.81616382,127.94,127.82,17.00037208]
[1765918200594,28.04657338,127.94,127.88,6.56269912]
[1765918200791,8.50777487,127.92,127.89,6.56269912]
[1765918200997,28.04871178,127.93,127.87,8.58]
[1765918201241,28.04871178,127.93,127.87,6.56269912]
[1765918201524,7.25269912,127.92,127.87,7.82000464]
[1765918201688,7.81677479,127.93,127.88,7.81962816]
[1765918201893,32.20628096,127.95,127.92,6.56269912]
[1765918201894,7.81555295,127.95,127.92,6.56269912]
[1765918202096,0.79,127.97,127.93,6.56269912]
[1765918202312,0.79,127.97,127.92,8.58]
[1765918202515,0.79,127.97,127.93,6.56269912]
[1765918202697,8.60451967,127.97,127.93,6.56269912]
[1765918202908,8.60451967,127.97,127.92,8.58]
[1765918203106,28.14034837,127.97,127.93,6.56269912]
[1765918203336,34.70304749,127.97,127.92,6.56269912]
[1765918203698,34.01304749,127.97,127.92,6.56269912]
[1765918203903,0.72,127.96,127.92,6.56269912]
[1765918204222,0.72,127.96,127.91,22.96063358]
[1765918204403,7.28269912,127.96,127.91,15.14269912]
[1765918204598,6.56269912,127.96,127.91,6.56269912]
[1765918204820,7.81616382,127.94,127.91,6.56269912]
[1765918205218,7.8157578,127.95,127.91,14.38057524]
[1765918205394,7.8157578,127.95,127.92,6.56269912]
[1765918205594,8.53516404,127.96,127.9,16.39817577]
[1765918205902,34.63521858,127.96,127.91,6.56269912]
[1765918206224,28.07251946,127.96,127.92,6.56269912]
[1765918206930,16.09264404,127.95,127.89,7.81873504]
[1765918207228,0.72,127.93,127.89,22.96143416]
[1765918207415,37.79019242,127.96,127.91,6.56269912]
[1765918207737,7.81516404,127.96,127.94,6.56269912]
[1765918208306,7.81516404,127.96,127.91,7.81777572]
[1765918208505,7.81516404,127.96,127.93,6.56269912]
[1765918209309,8.53516404,127.96,127.93,6.56269912]
[1765918209520,8.53516404,127.96,127.92,10.63409381]
[1765918209723,28.07251946,127.96,127.92,10.63409381]
[1765918209924,0.72,127.95,127.91,10.63409381]
[1765918210239,0.72,127.95,127.91,8.58]
[1765918210240,0.72,127.94,127.91,8.58]
[1765918210532,0.72,127.93,127.89,19.21409381]
[1765918211135,10.63409381,127.91,127.86,10.63409381]
[1765918211338,0.72,127.9,127.86,10.63409381]
[1765918211736,0.72,127.88,127.84,10.63409381]
[1765918212033,46.6084684,127.92,127.86,10.63409381]
[1765918212034,47.3284684,127.92,127.86,10.63409381]
[1765918212231,11.35409381,127.91,127.86,10.63409381]
[1765918213124,7.81860828,127.9,127.86,18.45509677]
[1765918213331,7.81860828,127.9,127.86,10.63409381]
[1765918213534,8.53860828,127.9,127.86,10.63409381]
[1765918213743,19.17270209,127.9,127.85,18.45556977]
[1765918214420,19.17270209,127.9,127.86,7.8209319]
[1765918214626,8.53860828,127.9,127.86,18.45502571]
[1765918214830,8.53860828,127.9,127.86,10.63409381]
[1765918215638,28.08512899,127.9,127.85,18.45548944]
[1765918215835,38.7192228,127.9,127.85,18.45548944]
[1765918216334,0.72,127.87,127.83,8.58]
[1765918217242,11.35409381,127.88,127.83,27.03688727]
[1765918217435,0.72,127.87,127.83,27.03688727]
[1765918217631,8.54061463,127.87,127.83,27.03688727]
[1765918217835,7.82061463,127.87,127.83,27.03688727]
[1765918218142,28.12745362,127.9,127.85,10.63409381]
[1765918218330,7.81883311,127.9,127.86,19.21409381]
[1765918218639,8.53883311,127.9,127.86,8.58]
[1765918221041,27.36535382,127.9,127.86,8.58]
[1765918221336,0.72,127.89,127.86,8.58]
[1765918221543,11.35409381,127.89,127.86,8.58]
[1765918222239,7.81983109,127.88,127.85,8.58]
[1765918223641,0.72,127.87,127.84,10.63409381]
[1765918223843,0.72,127.87,127.84,8.58]
[1765918224541,27.36940881,127.88,127.84,19.21409381]
[1765918224922,0.72,127.87,127.81,10.43767296]
[1765918225123,0.72,127.87,127.83,10.63409381]
[1765918225816,7.82105427,127.86,127.82,16.40319374]
[1765918226018,7.82105427,127.86,127.82,10.63409381]
[1765918226019,8.54105427,127.86,127.82,10.63409381]
[1765918226217,0.72,127.84,127.8,10.63409381]
[1765918226446,0.72,127.84,127.8,19.21409381]
[1765918226644,27.37368996,127.86,127.83,10.63409381]
[1765918226645,7.82105427,127.86,127.83,10.63409381]
[1765918227150,7.82071518,127.87,127.83,27.03694496]
[1765918227922,7.82071518,127.87,127.84,10.63409381]
[1765918228127,7.82071518,127.87,127.84,10.64765357]
[1765918229224,19.5475801,127.9,127.83,35.96007558]
[1765918229430,20.2675801,127.9,127.85,10.64765357]
[1765918229931,8.53950632,127.89,127.85,18.46914397]
[1765918231554,8.53950632,127.89,127.86,19.22765357]
[1765918232751,8.53950632,127.89,127.86,8.58]
[1765918233838,0.71,127.88,127.86,8.58]
[1765918234345,0.71,127.87,127.83,8.58]
[1765918234542,7.82105427,127.86,127.83,8.58]
[1765918235356,8.49105427,127.86,127.83,8.58]
[1765918235942,0.67,127.85,127.81,18.47174422]
[1765918236144,0.67,127.85,127.81,27.05174422]
[1765918236763,8.49216958,127.85,127.81,27.05174422]
[1765918236961,7.82216958,127.85,127.81,27.05174422]
[1765918237164,7.8213187,127.86,127.83,10.64765357]
[1765918237758,8.4913187,127.86,127.83,10.64765357]
[1765918237966,8.4913187,127.86,127.81,35.96437544]
[1765918238169,8.4913187,127.86,127.82,10.64765357]
[1765918238361,8.4913187,127.86,127.81,16.40409065]
[1765918238362,0.67,127.85,127.81,16.40409065]
[1765918238545,0.67,127.85,127.81,27.05174422]
[1765918238871,8.49198123,127.85,127.81,27.05174422]
[1765918239171,8.49198123,127.85,127.82,10.64765357]
[1765918240439,27.37614626,127.85,127.81,19.22765357]
[1765918240640,0.67,127.84,127.81,19.22765357]
[1765918241648,0.67,127.84,127.79,18.47273949]
[1765918241857,0.67,127.84,127.8,8.58]
[1765918242168,7.82288977,127.83,127.8,8.58]
[1765918242475,8.49288977,127.83,127.8,8.58]
[1765918242763,7.82288977,127.83,127.8,8.58]
[1765918243564,7.82288977,127.83,127.78,7.82576088]
[1765918243755,0.67,127.82,127.79,8.58]
[1765918243954,7.82411391,127.81,127.79,8.58]
[1765918244157,0.67,127.8,127.78,8.58]
[1765918245174,8.49411391,127.81,127.78,8.58]
[1765918245359,8.49411391,127.81,127.78,27.05355704]
[1765918245757,0.67,127.83,127.79,18.47291456]
[1765918245961,8.4919787,127.85,127.81,18.47160273]
[1765918246157,8.4919787,127.85,127.81,27.05160273]
[1765918246473,8.4919787,127.85,127.81,19.22765357]
[1765918246676,0.67,127.87,127.82,10.64765357]
[1765918246869,0.67,127.86,127.82,10.64765357]
[1765918248165,8.49166601,127.85,127.82,10.64765357]
[1765918248373,8.49166601,127.85,127.81,27.05163469]
[1765918249178,8.49166601,127.85,127.8,18.47207355]
[1765918249179,0.67,127.84,127.8,18.47207355]
[1765918249365,0.67,127.84,127.81,8.58]
[1765918250081,8.49261837,127.84,127.81,8.58]
[1765918251387,0.67,127.83,127.78,18.47330811]
[1765918251683,0.67,127.83,127.79,8.58]
[1765918251893,0.67,127.82,127.79,8.58]
[1765918252061,0.67,127.81,127.78,27.05324833]
[1765918252263,8.49407054,127.82,127.78,27.05324833]
[1765918252462,8.49407054,127.82,127.79,10.64765357]
[1765918253060,8.49407054,127.82,127.78,27.05324833]
[1765918255505,0.67,127.82,127.78,19.22765357]
[1765918255785,0.67,127.82,127.78,27.05352024]
[1765918255953,0.67,127.82,127.76,9.20316233]
[1765918256157,0.67,127.8,127.77,8.58]
[1765918257192,0.67,127.79,127.75,10.64765357]
[1765918257397,7.82595085,127.78,127.76,8.58]
[1765918257696,7.82595085,127.78,127.74,7.82812984]
[1765918257697,0.67,127.77,127.75,8.58]
[1765918258773,7.82595085,127.78,127.75,8.58]
[1765918258774,0.67,127.78,127.76,10.64765357]
[1765918258966,8.49563482,127.79,127.76,10.64765357]
[1765918260369,0.67,127.78,127.75,8.58]
[1765918260587,18.47328839,127.79,127.75,27.05507937]
[1765918260588,7.82563482,127.79,127.75,27.05507937]
[1765918260893,0.67,127.78,127.75,19.22765357]
[1765918261206,0.67,127.76,127.72,8.58]
[1765918261388,0.67,127.76,127.71,7.83000087]
[1765918261389,0.67,127.75,127.71,7.83000087]
[1765918261602,0.67,127.74,127.7,19.42765357]
[1765918261890,0.67,127.73,127.7,8.78]
[1765918262090,0.67,127.73,127.7,19.42765357]
[1765918262271,0.67,127.73,127.7,16.61070811]
[1765918262597,0.67,127.74,127.71,10.64765357]
[1765918262776,7.82717595,127.76,127.72,10.64765357]
[1765918263017,0.67,127.75,127.72,10.64765357]
[1765918263490,0.67,127.75,127.71,10.64765357]
[1765918263860,7.82806051,127.75,127.71,18.4775351]
[1765918264064,0.67,127.74,127.71,18.4775351]
[1765918264693,8.49806051,127.75,127.72,10.64765357]
[1765918264896,0.67,127.77,127.73,10.64765357]
[1765918265094,30.21177132,127.79,127.74,10.64765357]